bitfinex/quotes_BTCUSD_20240617
["timestamp","ask_amount","ask_price","bid_price","bid_amount"]
[1718622030123,0.00085,65865.0,65864.0,1.69582305]
[1718622030420,0.00085,65865.0,65864.0,1.68182305]
[1718622030646,0.00085,65865.0,65864.0,1.72716294]
[1718622030794,0.00085,65865.0,65864.0,1.93021438]
[1718622031000,0.00085,65865.0,65864.0,1.69582305]
[1718622031197,0.00085,65865.0,65864.0,1.9302032]
[1718622031826,0.00085,65865.0,65864.0,1.74115176]
[1718622032227,0.00085,65865.0,65864.0,1.9302032]
[1718622033154,0.00085,65865.0,65864.0,2.0302032]
[1718622033379,0.00085,65865.0,65864.0,2.3338592]
[1718622034019,0.00085,65865.0,65864.0,1.98487449]
[1718622034430,0.00085,65865.0,65864.0,2.05290054]
[1718622034818,0.00085,65865.0,65864.0,1.88487449]
[1718622035360,0.00085,65865.0,65864.0,2.05280002]
[1718622035769,0.00085,65865.0,65864.0,2.10584838]
[1718622036214,0.00085,65865.0,65864.0,1.98487449]
[1718622036408,0.00085,65865.0,65864.0,1.93790824]
[1718622036641,0.00085,65865.0,65864.0,2.00990769]
[1718622036852,0.00085,65865.0,65864.0,2.07783322]
[1718622037053,0.00085,65865.0,65864.0,2.09183322]
[1718622038482,0.00085,65865.0,65864.0,2.00990769]
[1718622038696,0.00085,65865.0,65864.0,2.00979809]
[1718622038911,0.00085,65865.0,65864.0,2.07772362]
[1718622039340,0.00085,65865.0,65864.0,2.00979809]
[1718622039554,0.00085,65865.0,65864.0,2.09172362]
[1718622039769,0.00085,65865.0,65864.0,2.03779809]
[1718622039980,0.00085,65865.0,65864.0,1.96906352]
[1718622040198,0.00085,65865.0,65864.0,1.65140752]
[1718622040420,0.00085,65865.0,65864.0,1.78177921]
[1718622040847,0.00085,65865.0,65864.0,1.97076489]
[1718622041256,0.00085,65865.0,65864.0,2.37287168]
[1718622041432,0.00085,65865.0,65864.0,2.38687168]
[1718622041643,0.00085,65870.0,65864.0,2.38687168]
[1718622041644,0.00085,65870.0,65869.0,1.536344]
[1718622041846,0.00085,65870.0,65869.0,2.46898753]
[1718622042049,0.00085,65870.0,65869.0,2.65797321]
[1718622042251,0.00085,65870.0,65869.0,2.70322709]
[1718622042461,0.00085,65870.0,65869.0,2.75322709]
[1718622042672,0.00085,65870.0,65869.0,2.70797321]
[1718622042879,0.0648,65885.0,65869.0,2.70797321]
[1718622042880,0.0648,65885.0,65884.0,0.475344]
[1718622043090,0.0648,65885.0,65884.0,0.83131374]
[1718622043406,0.0641,65887.0,65886.0,0.02]
[1718622043621,0.0641,65887.0,65886.0,1.05696324]
[1718622043871,0.0641,65887.0,65886.0,0.44983793]
[1718622044080,0.0641,65887.0,65886.0,0.29806093]
[1718622044248,0.0641,65887.0,65886.0,0.36601257]
[1718622044513,0.07150494,65887.0,65886.0,0.36601257]
[1718622044640,0.00740494,65887.0,65886.0,0.36601257]
[1718622046147,0.00740494,65887.0,65886.0,0.35101257]
[1718622047585,0.00740494,65887.0,65886.0,0.82634357]
[1718622047891,0.00740494,65887.0,65886.0,1.15289757]
[1718622048095,0.00085,65890.0,65889.0,0.15177]
[1718622048249,0.00085,65890.0,65889.0,0.40887914]
[1718622048459,0.14665494,65890.0,65889.0,0.40887914]
[1718622049318,0.14665494,65890.0,65889.0,0.40987914]
[1718622050050,0.29842294,65890.0,65889.0,0.40987914]
[1718622050246,0.29842294,65890.0,65889.0,0.283906]
[1718622051930,0.29842294,65890.0,65889.0,0.303906]
[1718622052150,0.29842294,65890.0,65889.0,0.283906]
[1718622054100,0.29842294,65890.0,65889.0,0.27906078]
[1718622057486,0.60195894,65890.0,65889.0,0.27906078]
[1718622060251,0.60195894,65890.0,65889.0,0.15308779]
[1718622060449,0.60195894,65890.0,65889.0,0.27906084]
[1718622060679,0.00825494,65890.0,65889.0,0.29906084]
[1718622060873,0.00825494,65890.0,65889.0,0.38539619]
[1718622061100,0.16002294,65890.0,65889.0,0.38539619]
[1718622061684,0.16002294,65890.0,65889.0,0.36539619]
[1718622062283,0.46355894,65890.0,65889.0,0.36539619]
[1718622062490,0.76709494,65890.0,65889.0,0.36539619]
[1718622062707,0.76709494,65890.0,65889.0,0.27906084]
[1718622063340,1.21083094,65890.0,65889.0,0.27906084]
[1718622063806,0.90729494,65890.0,65889.0,0.27906084]
[1718622064233,0.30022294,65890.0,65889.0,0.27906084]
[1718622064450,0.90729494,65890.0,65889.0,0.27906084]
[1718622064662,0.90729494,65890.0,65889.0,0.15308779]
[1718622064870,0.90729494,65890.0,65889.0,0.27906197]
[1718622066968,0.60375894,65890.0,65889.0,0.27906197]
[1718622067174,0.60375894,65890.0,65889.0,0.32591173]
[1718622069528,0.30022294,65890.0,65889.0,0.34591173]
[1718622069733,0.30022294,65890.0,65889.0,0.32591173]
[1718622069734,0.46355894,65890.0,65889.0,0.32591173]
[1718622070274,0.76709494,65890.0,65889.0,0.32591173]
[1718622072698,0.76709494,65890.0,65889.0,0.3259093]
[1718622073332,0.00825494,65890.0,65889.0,0.3259093]
[1718622073538,0.16002294,65890.0,65889.0,0.3259093]
[1718622074010,0.16002294,65890.0,65889.0,0.3459093]
[1718622074219,0.00825494,65890.0,65889.0,0.8012193]
[1718622074421,0.00085,65890.0,65889.0,0.4976793]
[1718622075080,0.00085,65890.0,65889.0,0.8012193]
[1718622075263,0.00085,65890.0,65889.0,1.8507993]
[1718622075672,0.00085,65890.0,65889.0,2.0928686]
[1718622075898,0.00085,65890.0,65889.0,2.13812965]
[1718622076119,0.00085,65890.0,65889.0,2.23812965]
[1718622076251,0.00085,65890.0,65889.0,2.13710932]
[1718622076459,0.00085,65890.0,65889.0,2.0918686]
[1718622077293,0.00085,65890.0,65889.0,2.1058686]
[1718622077490,0.00085,65890.0,65889.0,2.0918686]
[1718622077872,0.00085,65890.0,65889.0,2.1058686]
[1718622078294,0.00085,65890.0,65889.0,2.0918686]
[1718622078621,0.00085,65890.0,65889.0,2.1918686]
[1718622078854,0.00085,65890.0,65889.0,2.37376018]
[1718622079072,0.00085,65890.0,65889.0,2.3198686]
[1718622079310,0.00085,65901.0,65900.0,1.230715]
[1718622079514,0.00085,65901.0,65900.0,1.60477454]
[1718622079720,0.00085,65901.0,65900.0,1.35980368]
[1718622080345,0.00085,65901.0,65900.0,1.22828454]
[1718622080556,0.00085,65901.0,65900.0,1.30124172]
[1718622080728,0.00085,65901.0,65900.0,1.46732951]
[1718622081863,0.00085,65901.0,65900.0,1.48546589]
[1718622082510,0.00085,65901.0,65900.0,1.49846589]
[1718622083271,0.00085,65901.0,65900.0,1.48033014]
[1718622085816,0.00085,65901.0,65900.0,1.17684014]
[1718622090428,0.00085,65901.0,65900.0,1.48033014]
[1718622090898,0.00085,65901.0,65900.0,2.08382014]
[1718622091101,0.00085,65901.0,65900.0,2.27270557]
[1718622091527,0.00085,65901.0,65900.0,2.33102053]
[1718622091930,0.00939401,65902.0,65901.0,1.374897]
[1718622092142,0.00939401,65902.0,65901.0,2.05212476]
[1718622092352,0.00939401,65902.0,65901.0,2.10212476]
[1718622093191,1e-08,65902.0,65901.0,2.10211012]
[1718622093404,1e-08,65902.0,65901.0,2.11311012]
[1718622093609,1e-08,65902.0,65901.0,2.12711012]
[1718622094937,1e-08,65902.0,65901.0,2.1271101]
[1718622095759,1e-08,65902.0,65901.0,2.4305951]
[1718622096001,0.00939401,65906.0,65905.0,1.120467]
[1718622096218,0.00939401,65906.0,65905.0,2.19338145]
[1718622096436,0.00939401,65906.0,65905.0,2.07879465]
[1718622096658,0.00939401,65906.0,65905.0,1.88991445]
[1718622096884,1e-08,65906.0,65905.0,1.88991445]
[1718622097093,1e-08,65906.0,65905.0,1.74587155]
[1718622097598,1e-08,65906.0,65905.0,1.92993114]
[1718622097852,1e-08,65906.0,65905.0,2.03509114]
[1718622098070,1e-08,65906.0,65905.0,2.41067642]
[1718622098309,1e-08,65906.0,65905.0,2.58553465]
[1718622098521,1e-08,65906.0,65905.0,2.59953465]
[1718622098726,1e-08,65906.0,65905.0,2.68963596]
[1718622098934,1e-08,65906.0,65905.0,2.67563596]
[1718622099356,1e-08,65906.0,65905.0,2.59950506]
[1718622100036,0.009383,65931.0,65920.0,0.507899]
[1718622100263,0.009383,65931.0,65930.0,0.77838]
[1718622100464,0.009383,65931.0,65930.0,0.82599779]
[1718622100686,0.009383,65931.0,65930.0,0.84899779]
[1718622100914,0.009383,65931.0,65930.0,1.15234979]
[1718622101204,0.009383,65931.0,65930.0,1.25234979]
[1718622101429,0.009383,65931.0,65930.0,1.40443758]
[1718622101852,0.009383,65931.0,65930.0,1.41843758]
[1718622102066,0.009383,65936.0,65935.0,0.978322]
[1718622102276,0.009383,65936.0,65935.0,1.45229179]
[1718622102523,0.009383,65936.0,65935.0,2.02272046]
[1718622102758,0.00769519,65936.0,65935.0,2.59816774]
[1718622103020,0.009383,65953.0,65951.0,0.151625]
[1718622103302,0.009383,65953.0,65950.0,0.303259]
[1718622103303,0.151619,65955.0,65952.0,0.30022937]
[1718622103541,0.151619,65955.0,65953.0,0.125882]
[1718622103781,0.151619,65955.0,65954.0,0.32481955]
[1718622104035,0.369965,65957.0,65954.0,0.32481955]
[1718622104317,0.151618,65956.0,65955.0,0.125882]
[1718622104612,0.151618,65956.0,65955.0,0.27796979]
[1718622104795,0.45485,65956.0,65955.0,0.31415175]
[1718622106072,0.46187643,65956.0,65955.0,0.31915175]
[1718622106322,0.48057643,65956.0,65955.0,0.31915175]
[1718622106536,1.15374043,65956.0,65955.0,0.130882]
[1718622106758,1.47697243,65956.0,65955.0,0.005]
[1718622106953,1.47697243,65956.0,65955.0,0.017]
[1718622107169,1.15374043,65956.0,65955.0,0.017]
[1718622107622,0.0854,65948.0,65937.0,0.48]
[1718622107827,0.303306,65940.0,65939.0,0.45626336]
[1718622108025,0.303306,65940.0,65939.0,0.27795346]
[1718622108241,0.843665,65940.0,65939.0,0.27795346]
[1718622108493,0.8507697,65940.0,65939.0,0.27795346]
[1718622108725,0.8507697,65940.0,65939.0,0.32750746]
[1718622108962,0.1587577,65940.0,65939.0,0.32750746]
[1718622109206,0.4620637,65940.0,65939.0,0.32750746]
[1718622109654,0.4620637,65940.0,65939.0,0.35050746]
[1718622109846,0.7653697,65940.0,65939.0,0.35050746]
[1718622110083,0.7653697,65940.0,65939.0,0.36450746]
[1718622110307,0.7653697,65940.0,65939.0,0.35050746]
[1718622110308,0.4620637,65940.0,65939.0,0.35050746]
[1718622110544,0.7653697,65940.0,65939.0,0.32750746]
[1718622110769,0.7653697,65940.0,65939.0,0.33950746]
[1718622111020,0.7653697,65940.0,65939.0,0.32750746]
[1718622111297,0.0071047,65940.0,65939.0,0.34350746]
[1718622111541,0.151645,65944.0,65939.0,0.49516246]
[1718622111796,0.151645,65944.0,65940.0,0.37538076]
[1718622112044,0.151645,65944.0,65941.0,0.12586567]
[1718622112312,0.46210638,65943.0,65942.0,0.27795238]
[1718622113015,0.76539838,65943.0,65942.0,0.27795238]
[1718622113232,0.76539838,65943.0,65942.0,0.32444901]
[1718622113460,0.691984,65943.0,65942.0,0.32444901]
[1718622113670,1.146922,65943.0,65942.0,0.32444901]
[1718622114104,1.146922,65943.0,65942.0,0.13986459]
[1718622114108,1.450214,65943.0,65942.0,0.12586459]
[1718622114352,1.146922,65943.0,65942.0,0.12586459]
[1718622114587,1.146922,65943.0,65942.0,0.13286459]
[1718622114847,1.146922,65943.0,65942.0,0.12586459]
[1718622115066,1.146922,65943.0,65942.0,0.14025105]
[1718622115301,1.146922,65943.0,65942.0,0.15025105]
[1718622115795,1.166922,65943.0,65942.0,0.01438646]
[1718622116013,0.303349,65931.0,65928.0,0.2]
[1718622116217,0.151677,65930.0,65929.0,0.40097266]
[1718622116440,0.151671,65933.0,65929.0,0.40097266]
[1718622116642,0.151671,65933.0,65930.0,0.25787066]
[1718622116844,0.151671,65933.0,65931.0,0.30097266]
[1718622117050,0.303328,65936.0,65932.0,0.12588487]
[1718622117051,0.151666,65934.0,65932.0,0.12588487]
[1718622117286,0.151666,65934.0,65933.0,0.27797266]
[1718622117439,0.151666,65934.0,65933.0,0.40818566]
[1718622118656,0.303314,65939.0,65933.0,0.42018566]
[1718622118858,0.151662,65936.0,65933.0,0.42018566]
[1718622119494,0.151665,65935.0,65934.0,0.12587844]
[1718622119667,0.303321,65937.0,65934.0,0.36897602]
[1718622119668,0.151662,65936.0,65934.0,0.36897602]
[1718622119878,0.303317,65938.0,65935.0,0.27796623]
[1718622120085,0.15166,65937.0,65935.0,0.17208779]
[1718622120313,0.303314,65939.0,65936.0,0.12587647]
[1718622120518,0.303314,65939.0,65937.0,0.27796426]
[1718622120723,0.151655,65939.0,65938.0,0.20298339]
[1718622120924,0.151655,65939.0,65938.0,0.35507118]
[1718622121152,0.151655,65939.0,65938.0,0.35506896]
[1718622121579,0.454965,65939.0,65938.0,0.35506896]
[1718622121989,0.758275,65939.0,65938.0,0.35506896]
[1718622122939,1.061585,65939.0,65938.0,0.28196204]
[1718622123168,1.146985,65939.0,65938.0,0.28196204]
[1718622123374,1.146985,65939.0,65938.0,0.12987425]
[1718622123573,1.146985,65939.0,65938.0,0.14087425]
[1718622124021,1.146985,65939.0,65938.0,0.12987425]
[1718622124228,1.146985,65939.0,65938.0,0.14286168]
[1718622124439,1.146985,65939.0,65938.0,0.15386168]
[1718622124645,1.146985,65939.0,65938.0,0.14286168]
[1718622124787,1.146985,65939.0,65938.0,0.13886168]
[1718622125014,1.146985,65939.0,65938.0,0.14386168]
[1718622125231,0.540365,65939.0,65938.0,0.14386168]
[1718622125639,0.843675,65939.0,65938.0,0.14386168]
[1718622126065,0.0854,65943.0,65940.0,0.151652]
[1718622126273,0.00018315,65961.0,65943.0,0.151644]
[1718622126274,0.0854,65948.0,65943.0,0.151644]
[1718622126503,0.0854,65948.0,65946.0,0.01811812]
[1718622126745,0.15163,65950.0,65944.0,0.46676976]
[1718622126746,0.15163,65950.0,65947.0,0.33277794]
[1718622126951,0.388658,65951.0,65947.0,0.33277794]
[1718622126952,0.388658,65951.0,65948.0,0.18196521]
[1718622127091,0.388658,65951.0,65949.0,0.12587425]
[1718622127092,0.15163,65950.0,65949.0,0.12587425]
[1718622127952,0.45489,65950.0,65949.0,0.12587425]
[1718622128297,0.75815,65950.0,65949.0,0.12587425]
[1718622129159,1.06141,65950.0,65949.0,0.12787425]
[1718622129627,1.38467,65950.0,65949.0,0.12787425]
[1718622129837,1.47007,65950.0,65949.0,0.12787425]
[1718622130451,1.16681,65950.0,65949.0,0.12787425]
[1718622130659,1.20213613,65950.0,65949.0,0.13587425]
[1718622130862,1.50539613,65950.0,65949.0,0.01]
[1718622131067,1.50539613,65950.0,65949.0,0.008]
[1718622131068,1.20213613,65950.0,65949.0,0.008]
[1718622131273,1.20213613,65950.0,65949.0,0.015]
[1718622131481,1.50539613,65950.0,65949.0,0.016]
[1718622132099,1.60539613,65950.0,65949.0,0.016]
[1718622132312,1.60624613,65950.0,65949.0,0.016]
[1718622132526,0.87972613,65950.0,65949.0,0.016]
[1718622132733,0.00085,65950.0,65949.0,0.14187644]
[1718622132906,0.00085,65950.0,65949.0,0.15606408]
[1718622133165,0.00085,65950.0,65949.0,0.15506408]
[1718622133370,0.00085,65950.0,65949.0,0.14750408]
[1718622133628,0.15248,65950.0,65949.0,0.14750408]
[1718622133892,0.00085,65950.0,65949.0,0.14750408]
[1718622134150,0.15248,65950.0,65949.0,0.14750408]
[1718622134370,0.15248,65950.0,65949.0,0.14006408]
[1718622134571,0.00085,65950.0,65949.0,0.14006408]
[1718622134774,0.00085,65950.0,65949.0,0.14106408]
[1718622135175,0.00085,65950.0,65949.0,0.14006408]
[1718622135401,0.15248,65950.0,65949.0,0.14806408]
[1718622135599,0.45574,65950.0,65949.0,0.14806408]
[1718622136008,0.00085,65950.0,65949.0,0.30169608]
[1718622136221,0.00085,65950.0,65949.0,0.15006408]
[1718622136653,0.15248,65950.0,65949.0,0.15006408]
[1718622137453,0.00085,65950.0,65949.0,0.15006408]
[1718622137649,0.00085,65950.0,65949.0,0.60541587]
[1718622137899,0.00085,65950.0,65949.0,0.30215187]
[1718622139486,0.00085,65950.0,65949.0,0.45378387]
[1718622139740,0.00085,65950.0,65949.0,0.75704787]
[1718622140144,0.00085,65950.0,65949.0,0.45378387]
[1718622140376,0.00085,65950.0,65949.0,0.30215187]
[1718622140789,0.00085,65950.0,65949.0,0.92094787]
[1718622140961,0.00085,65950.0,65949.0,0.46605187]
[1718622141338,0.15248,65950.0,65949.0,0.46605187]
[1718622141537,0.00085,65950.0,65949.0,0.46605187]
[1718622141985,0.45574,65950.0,65949.0,0.44305187]
[1718622142363,0.15248,65950.0,65949.0,0.30215187]
[1718622142544,0.45574,65950.0,65949.0,0.30215187]
[1718622142944,0.00085,65950.0,65949.0,0.30215187]
[1718622143554,0.00085,65950.0,65949.0,0.45378387]
[1718622144013,0.00085,65950.0,65949.0,0.75704787]
[1718622144243,0.00085,65950.0,65949.0,0.77704787]
[1718622144883,0.00085,65950.0,65949.0,1.08031187]
[1718622145108,0.00085,65950.0,65949.0,0.80004787]
[1718622145331,0.00085,65950.0,65949.0,0.94744787]
[1718622145572,0.00085,65950.0,65949.0,0.92744787]
[1718622146665,0.00085,65950.0,65949.0,1.25071187]
[1718622146911,0.00085,65950.0,65949.0,0.94744787]
[1718622147137,0.00085,65950.0,65949.0,1.35071187]
[1718622147760,0.00085,65950.0,65949.0,1.32871187]
[1718622148197,0.00085,65950.0,65949.0,1.35071187]
[1718622148413,0.00085,65950.0,65949.0,1.36471187]
[1718622149182,0.00085,65950.0,65949.0,1.41117168]
[1718622150976,0.00085,65950.0,65949.0,1.26129524]
[1718622151178,0.00085,65950.0,65949.0,0.62706229]
[1718622151480,0.00085,65950.0,65949.0,0.4755718]
[1718622151679,0.15248,65950.0,65949.0,0.4665718]
[1718622151886,0.45574,65950.0,65949.0,0.4665718]
[1718622152080,0.00085,65950.0,65949.0,0.4525718]
[1718622152288,0.00085,65950.0,65949.0,0.4385718]
[1718622152513,0.00085,65950.0,65949.0,0.4525718]
[1718622153051,0.00085,65950.0,65949.0,0.4665718]
[1718622153274,0.30411,65950.0,65949.0,0.4665718]
[1718622153498,0.15248,65950.0,65949.0,0.4665718]
[1718622153698,0.15248,65950.0,65949.0,0.4425718]
[1718622154040,0.00085,65950.0,65949.0,0.4545718]
[1718622154433,0.00085,65950.0,65949.0,0.4405718]
[1718622154612,0.00085,65950.0,65949.0,0.4545718]
[1718622155642,0.00085,65950.0,65949.0,1.61982229]
[1718622155853,0.00085,65950.0,65949.0,1.6247318]
[1718622156068,0.00085,65950.0,65949.0,1.93932764]
[1718622156280,0.00085,65950.0,65949.0,2.12808248]
[1718622156506,0.00085,65950.0,65949.0,1.82481848]
[1718622156685,0.00085,65950.0,65949.0,1.63606364]
[1718622156891,0.00085,65950.0,65949.0,1.92732764]
[1718622157153,0.00085,65950.0,65949.0,1.44186364]
[1718622157365,0.00085,65950.0,65949.0,1.75912764]
[1718622157666,0.00085,65950.0,65949.0,1.74512764]
[1718622157865,0.00085,65950.0,65949.0,1.75912764]
[1718622158215,0.00085,65950.0,65949.0,1.89132764]
[1718622158443,0.00085,65950.0,65949.0,1.94132764]
[1718622158657,0.00085,65950.0,65949.0,2.34459164]
[1718622158871,0.00085,65950.0,65949.0,2.53334648]
[1718622159434,0.00085,65950.0,65949.0,2.41334648]
[1718622159663,0.00085,65950.0,65949.0,2.43334648]
[1718622160069,0.00085,65950.0,65949.0,2.53334648]
[1718622160674,0.00018315,65961.0,65960.0,0.566007]
[1718622160889,0.00018315,65961.0,65960.0,1.53971474]
[1718622161101,0.00018315,65961.0,65960.0,2.14614274]
[1718622161315,0.00018315,65961.0,65960.0,2.19614274]
[1718622161532,0.00018315,65961.0,65960.0,1.92613901]
[1718622161739,0.00018315,65961.0,65960.0,1.88400438]
[1718622161967,0.00018315,65961.0,65960.0,1.89600438]
[1718622162411,0.00018315,65961.0,65960.0,2.49567737]
[1718622162810,0.00018315,65961.0,65960.0,2.36984081]
[1718622163025,0.00018315,65961.0,65960.0,2.68436072]
[1718622163453,0.00018315,65961.0,65960.0,2.68136072]
[1718622163672,0.00018315,65961.0,65960.0,2.69536072]
[1718622163888,0.00018315,65961.0,65960.0,2.79536072]
[1718622164098,0.00018315,65961.0,65960.0,2.69536072]
[1718622164313,0.00018315,65961.0,65960.0,2.67236072]
[1718622164563,0.00018315,65961.0,65960.0,2.80036072]
[1718622165002,0.00018315,65961.0,65960.0,2.78636072]
[1718622165218,0.009383,65967.0,65966.0,0.12]
[1718622165453,0.0130556,65970.0,65969.0,0.521586]
[1718622165697,0.0130556,65970.0,65969.0,1.61995621]
[1718622165915,0.0130556,65970.0,65969.0,2.27973732]
[1718622166104,0.0130556,65970.0,65969.0,2.46844927]
[1718622166707,0.0130556,65970.0,65969.0,2.46844901]
[1718622166911,0.0130556,65970.0,65969.0,2.76060217]
[1718622167122,0.0130556,65970.0,65969.0,2.78391619]
[1718622167361,0.0130556,65970.0,65969.0,0.84212802]
[1718622167565,0.0130556,65970.0,65969.0,0.87977694]
[1718622167766,0.0130556,65970.0,65969.0,0.99371402]
[1718622167955,0.0130556,65970.0,65969.0,1.556744]
[1718622168336,0.0130556,65970.0,65969.0,1.590744]
[1718622168548,0.0130556,65970.0,65969.0,1.570744]
[1718622168731,0.0130556,65970.0,65969.0,1.26756326]
[1718622169057,0.0130556,65970.0,65969.0,1.94390726]
[1718622169216,0.0130556,65970.0,65969.0,1.95790726]
[1718622169432,0.0130556,65970.0,65969.0,2.03884071]
[1718622169629,0.0130556,65970.0,65969.0,1.97594685]
[1718622169836,0.0130556,65970.0,65969.0,1.96194685]
[1718622170502,0.0130556,65970.0,65969.0,1.94794685]
[1718622170710,0.0130556,65970.0,65969.0,1.92989575]
[1718622170885,0.0130556,65970.0,65969.0,1.66403777]
[1718622171117,0.0130556,65970.0,65969.0,0.92975669]
[1718622171319,0.0130556,65970.0,65969.0,1.01437975]
[1718622171605,0.0130556,65970.0,65969.0,1.63472375]
[1718622171811,0.0130556,65970.0,65969.0,1.62072375]
[1718622172017,0.0130556,65970.0,65969.0,1.92989575]
[1718622172218,0.0130556,65970.0,65969.0,2.05794685]
[1718622172435,0.0130556,65970.0,65969.0,2.23263559]
[1718622172648,0.0130556,65970.0,65969.0,2.20058449]
[1718622172841,0.0130556,65970.0,65969.0,2.01189575]
[1718622173032,0.0130556,65970.0,65969.0,2.02589575]
[1718622173239,0.0130556,65970.0,65969.0,2.04394393]
[1718622173767,0.0130556,65970.0,65969.0,2.21458449]
[1718622173985,0.0130556,65970.0,65969.0,2.38638177]
[1718622174201,0.0130556,65970.0,65969.0,2.31422507]
[1718622174380,0.0130556,65970.0,65969.0,2.33227375]
[1718622174819,0.0130556,65970.0,65969.0,2.31827375]
[1718622175033,0.0130556,65970.0,65969.0,1.64025006]
[1718622175442,0.0130556,65970.0,65969.0,1.01653436]
[1718622175666,0.0130556,65970.0,65969.0,1.2913798]
[1718622175840,0.0130556,65970.0,65969.0,0.99600009]
[1718622176001,0.0130556,65970.0,65969.0,0.83041409]
[1718622176208,0.0130556,65970.0,65969.0,0.98200009]
[1718622176407,0.0130556,65970.0,65969.0,0.99600009]
[1718622176611,0.0130556,65970.0,65969.0,1.29917209]
[1718622176821,0.0130556,65970.0,65969.0,1.60234409]
[1718622177025,0.0130556,65970.0,65969.0,1.58834409]
[1718622177225,0.0130556,65970.0,65969.0,1.60834409]
[1718622177459,0.0130556,65970.0,65969.0,1.62234409]
[1718622177629,0.0130556,65970.0,65969.0,1.31917209]
[1718622177831,0.0130556,65970.0,65969.0,1.30517209]
[1718622178030,0.0130556,65970.0,65969.0,1.63634409]
[1718622178231,0.0130556,65970.0,65969.0,1.60834997]
[1718622178487,0.0130556,65970.0,65969.0,1.58834997]
[1718622178624,0.0130556,65970.0,65969.0,0.84441997]
[1718622178857,0.0130556,65970.0,65969.0,0.65533218]
[1718622179062,0.0130556,65970.0,65969.0,1.11009018]
[1718622179272,0.0130556,65970.0,65969.0,1.44531268]
[1718622179473,0.0130556,65970.0,65969.0,0.82496868]
[1718622179897,0.0130556,65970.0,65969.0,0.65533218]
[1718622180097,0.0130556,65970.0,65969.0,0.94981495]
[1718622180271,0.0994556,65970.0,65969.0,0.67338268]
[1718622180478,0.5542076,65970.0,65969.0,0.65533218]
[1718622180685,0.5542076,65970.0,65969.0,0.55533218]
[1718622180894,0.0994556,65970.0,65969.0,0.56933218]
[1718622181129,0.0994556,65970.0,65969.0,1.02409018]
[1718622181346,0.0130556,65970.0,65969.0,1.43517625]
[1718622181985,0.0130556,65970.0,65969.0,1.42117625]
[1718622182192,0.0130556,65970.0,65969.0,1.94889875]
[1718622182411,0.0130556,65970.0,65969.0,2.10554718]
[1718622182821,0.0130556,65970.0,65969.0,1.81637518]
[1718622183050,0.0130556,65970.0,65969.0,1.82937518]
[1718622184402,0.0130556,65970.0,65969.0,1.79637518]
[1718622184594,0.0130556,65970.0,65969.0,1.49320318]
[1718622184999,0.0130556,65970.0,65969.0,1.81037518]
[1718622185215,0.0130556,65970.0,65969.0,1.81637518]
[1718622185658,0.0130556,65970.0,65969.0,2.11854718]
[1718622185775,0.0130556,65970.0,65969.0,2.13254718]
[1718622186175,0.0130556,65970.0,65969.0,2.11854718]
[1718622186437,0.0130556,65970.0,65969.0,2.13254718]
[1718622186648,0.0130556,65970.0,65969.0,2.11954718]
[1718622187955,0.0130556,65970.0,65969.0,1.49320318]
[1718622188189,0.0130556,65970.0,65969.0,1.50820318]
[1718622188625,0.0130556,65970.0,65969.0,1.49320318]
[1718622188830,0.0130556,65970.0,65969.0,1.43870318]
[1718622189478,0.0130556,65970.0,65969.0,1.74187518]
[1718622189688,0.0130556,65970.0,65969.0,1.43870318]
[1718622190316,0.0130556,65970.0,65969.0,1.76187518]
[1718622190571,0.0130556,65970.0,65969.0,1.45870318]
[1718622190793,0.0130556,65970.0,65969.0,1.76187518]
[1718622190968,0.0130556,65970.0,65969.0,2.07637834]
[1718622191221,0.0130556,65970.0,65969.0,1.75320634]
[1718622191441,0.0130556,65970.0,65969.0,2.0763783]
[1718622191664,0.0130556,65970.0,65969.0,1.7732063]
[1718622191916,0.0130556,65970.0,65969.0,0.96094518]
[1718622192134,0.2313396,65970.0,65969.0,0.96094518]
[1718622192569,0.0797556,65970.0,65969.0,0.96094518]
[1718622192783,0.2313396,65970.0,65969.0,0.96094518]
[1718622193000,0.0797556,65970.0,65969.0,0.96094518]
[1718622194123,0.0130556,65970.0,65969.0,0.96094518]
[1718622194341,0.1646396,65970.0,65969.0,0.96094518]
[1718622194760,0.4678076,65970.0,65969.0,0.96094518]
[1718622194965,0.7709756,65970.0,65969.0,0.60094332]
[1718622195185,0.7709756,65970.0,65969.0,0.40094332]
[1718622195764,0.4678076,65970.0,65969.0,0.40094332]
[1718622196400,0.4678076,65970.0,65969.0,0.4009834]
[1718622197899,0.7709756,65970.0,65969.0,0.40097932]
[1718622198109,0.4686576,65970.0,65969.0,0.40097932]
[1718622198301,0.4686576,65970.0,65969.0,0.44287075]
[1718622198525,0.4686576,65970.0,65969.0,0.40097575]
[1718622200020,0.7718256,65970.0,65969.0,0.40097575]
[1718622200444,0.4686576,65970.0,65969.0,0.40097575]
[1718622200676,0.4686576,65970.0,65969.0,0.38335999]
[1718622200677,0.8582256,65970.0,65969.0,0.38335999]
[1718622200918,0.8582256,65970.0,65969.0,0.19464227]
[1718622201591,0.8582256,65970.0,65969.0,0.06883046]
[1718622201592,1.1813936,65970.0,65969.0,0.06883046]
[1718622201806,1.1813936,65970.0,65969.0,0.19465881]
[1718622203419,1.1613936,65970.0,65969.0,0.19465881]
[1718622203623,0.8582256,65970.0,65969.0,0.19465881]
[1718622204055,1.1613936,65970.0,65969.0,0.19465881]
[1718622204259,1.1813936,65970.0,65969.0,0.19465881]
[1718622205382,1.1613936,65970.0,65969.0,0.19465881]
[1718622205966,1.1813936,65970.0,65969.0,0.19465881]
[1718622206170,1.1613936,65970.0,65969.0,0.19465881]
[1718622206442,1.1813936,65970.0,65969.0,0.19465881]
[1718622207333,0.8582256,65970.0,65969.0,0.19465881]
[1718622207729,1.1813936,65970.0,65969.0,0.19465881]
[1718622210219,1.1813936,65970.0,65969.0,0.19466001]
[1718622210420,1.1613936,65970.0,65969.0,0.19466001]
[1718622210626,1.1813936,65970.0,65969.0,0.19466001]
[1718622210827,1.4845616,65970.0,65969.0,0.19466001]
[1718622211038,1.53299945,65970.0,65969.0,0.19466001]
[1718622211246,1.53299945,65970.0,65969.0,0.18566001]
[1718622211452,1.53299945,65970.0,65969.0,0.18766001]
[1718622211885,1.22983145,65970.0,65969.0,0.18766001]
[1718622212099,1.53299945,65970.0,65969.0,0.17366001]
[1718622212551,1.53299945,65970.0,65969.0,0.18166001]
[1718622213363,1.53299945,65970.0,65969.0,0.05583046]
[1718622215408,2.01836745,65970.0,65969.0,0.05583046]
[1718622215602,1.71519945,65970.0,65969.0,0.05583046]
[1718622218918,1.53299945,65970.0,65969.0,0.05583046]
[1718622219549,1.60589945,65970.0,65969.0,0.05583046]
[1718622219751,1.20983145,65970.0,65969.0,0.05583046]